fUSD/lending_fUSD_20240730
["ID","MTS","AMOUNT","RATE_DAILY","PERIOD"]
[333694972,1722364232066,-669.94125223,0.0001,2]
[333694973,1722364232081,-3795.86506334,0.0001,2]
[333694974,1722364232092,-49766.75107362,0.0001,2]
[333694975,1722364232102,-940.0,0.00010051,2]
[333694976,1722364232111,-500.0,0.00010251,2]
[333694977,1722364232122,-500.0,0.0001026,2]
[333694978,1722364232131,-500.0,0.00010269,2]
[333694979,1722364232141,-500.0,0.00010277,2]
[333694980,1722364232152,-500.0,0.00010286,2]
[333694983,1722364232161,-500.0,0.00010295,2]
[333694985,1722364232172,-500.0,0.00010304,2]
[333694987,1722364232181,-500.0,0.00010313,2]
[333694989,1722364232191,-500.0,0.00010321,2]
[333694991,1722364232201,-500.0,0.0001033,2]
[333694993,1722364232211,-500.0,0.00010339,2]
[333694995,1722364232220,-500.0,0.00010348,2]
[333694997,1722364232231,-500.0,0.00010357,2]
[333694999,1722364232242,-500.0,0.00010365,2]
[333695001,1722364232251,-500.0,0.00010374,2]
[333695003,1722364232261,-500.0,0.00010383,2]
[333695005,1722364232271,-500.0,0.00010392,2]
[333695007,1722364232280,-500.0,0.00010401,2]
[333695009,1722364232290,-500.0,0.00010409,2]
[333695011,1722364232299,-500.0,0.00010418,2]
[333695013,1722364232309,-500.0,0.00010427,2]
[333695015,1722364232319,-500.0,0.00010436,2]
[333695017,1722364232329,-468.14,0.00010444,2]
[333695019,1722364232338,-500.0,0.00010445,2]
[333695021,1722364232347,-500.0,0.00010453,2]
[333695023,1722364232360,-500.0,0.00010462,2]
[333695025,1722364232369,-500.0,0.00010471,2]
[333695028,1722364232382,-1223.32145016,0.00010497,2]
[333695029,1722364232391,-1134.59400002,0.0001059,2]
[333695031,1722364232400,-2587.0093,0.0001069,2]
[333695033,1722364232410,-15812.6193,0.00010759,2]
[333695035,1722364232420,-886.5729,0.00010759,2]
[333695037,1722364232430,-7625.0,0.0001078,2]
[333695039,1722364232440,-9722.4317,0.00010856,2]
[333695042,1722364232450,-22223.2201,0.00010856,2]
[333695044,1722364232460,-4993.24394088,0.00010859,2]
[333695046,1722364232472,-682.5833683,0.00010859,2]
[333695048,1722364232488,-865.46028817,0.00010859,2]
[333695050,1722364232499,-2159.97449723,0.00010859,2]
[333695052,1722364232512,-2450.0216476,0.00010859,2]
[333695054,1722364232523,-600.0,0.00010859,2]
[333695055,1722364232534,-1157.040219,0.00010859,2]
[333695056,1722364232546,-2009.39774727,0.00010859,2]
[333695068,1722364237783,-58096.69761641,0.00010859,2]
[333695069,1722364237823,-1163.382,0.00010859,2]
[333695070,1722364237857,-311.21120683,0.00010859,2]
[333695071,1722364237890,-7991.34343518,0.00010859,2]
[333695072,1722364237903,-40188.70718728,0.00010859,2]
[333695073,1722364238006,-4070.08297907,0.00010859,2]
[333695074,1722364238019,-15000.0,0.00010859,2]
[333695075,1722364238029,-6627.6315134,0.00010859,2]
[333695076,1722364238041,-1849.01762945,0.00010859,2]
[333695077,1722364238052,-468.50164004,0.00010859,2]
[333695078,1722364238063,-4003.853329,0.00010859,2]
[333695079,1722364238075,-319.8,0.00010859,2]
[333695080,1722364238092,-668.26362144,0.00010859,2]
[333695215,1722364239878,-48086.72717888,0.00010859,2]
[333695217,1722364239890,-15240.96322548,0.00010859,2]
[333695227,1722364239984,-550.1564575,0.00010859,2]
[333695232,1722364240021,-3499.74297159,0.00010859,2]
[333695234,1722364240031,-500.0,0.00010882,2]
[333695236,1722364240040,-150.0,0.0001089,2]
[333695238,1722364240050,-157.75544,0.0001089,2]
[333695240,1722364240059,-3000.0,0.0001089,2]
[333695241,1722364240068,-2345.1652,0.00010897,2]
[333695243,1722364240078,-6000.0,0.000109,2]
[333695246,1722364240089,-1000.0,0.000109,2]
[333695248,1722364240100,-1132.01113745,0.000109,2]
[333695249,1722364240109,-1400.52228302,0.000109,2]
[333695251,1722364240118,-1400.52228301,0.000109,2]
[333695253,1722364240128,-2258.49564502,0.000109,2]
[333695255,1722364240138,-1000.0,0.00010945,2]
[333695257,1722364240147,-1000.0,0.00010945,2]
[333695259,1722364240160,-1000.0,0.00010945,2]
[333695261,1722364240169,-1000.0,0.00010945,2]
[333695263,1722364240178,-1000.0,0.00010945,2]
[333695264,1722364240188,-1000.0,0.00010945,2]
[333695266,1722364240198,-1000.0,0.00010945,2]
[333695268,1722364240207,-1000.0,0.00010945,2]
[333695270,1722364240217,-1000.0,0.00010945,2]
[333695272,1722364240226,-1000.0,0.00010945,2]
[333695274,1722364240236,-1000.0,0.00010945,2]
[333695276,1722364240246,-1000.0,0.00010945,2]
[333695278,1722364240256,-1000.0,0.00010945,2]
[333695280,1722364240265,-1000.0,0.00010945,2]
[333695282,1722364240275,-1000.0,0.00010945,2]
[333695284,1722364240284,-1000.0,0.00010945,2]
[333695286,1722364240294,-1000.0,0.00010945,2]
[333695288,1722364240303,-179.6485,0.00010945,2]
[333695290,1722364240312,-500.0,0.00010945,2]
[333695292,1722364240322,-500.0,0.00010945,2]
[333695294,1722364240331,-500.0,0.00010945,2]
[333695296,1722364240340,-500.0,0.00010945,2]
[333695298,1722364240349,-500.0,0.00010945,2]
[333695300,1722364240358,-500.0,0.00010945,2]
[333695302,1722364240368,-500.0,0.00010945,2]
[333695304,1722364240377,-500.0,0.00010945,2]
[333695306,1722364240387,-500.0,0.00010945,2]
[333695308,1722364240396,-364.969,0.00010945,2]
[333695310,1722364240406,-200.0,0.00010959,2]
[333695312,1722364240415,-150.0,0.00010959,2]
[333695314,1722364240424,-250.0,0.00010959,2]
[333695316,1722364240433,-155.0,0.0001099,2]
[333695318,1722364240443,-93977.57712969,0.00010997,2]
[333695320,1722364240453,-3212.899997,0.00010998,2]
[333695322,1722364240462,-811.0,0.00010999,2]
[333695324,1722364240472,-445.0,0.00010999,2]
[333695326,1722364240481,-2421.815,0.00010999,2]
[333695328,1722364240490,-450.0,0.00010999,2]
[333695330,1722364240500,-1995.0,0.00010999,2]
[333695332,1722364240510,-164.325,0.00010999,2]
[333695334,1722364240520,-583.367,0.00010999,2]
[333695336,1722364240529,-1110.081,0.00010999,2]
[333695338,1722364240539,-5691.0,0.00010999,2]
[333695340,1722364240549,-1581.0,0.00010999,2]
[333695342,1722364240559,-1255.0,0.00010999,2]
[333695344,1722364240568,-1925.0,0.00010999,2]
[333695346,1722364240577,-252.351,0.00010999,2]
[333695348,1722364240586,-1178.0,0.00010999,2]
[333695350,1722364240596,-621.0,0.00010999,2]
[333695352,1722364240605,-8500.0,0.00010999,2]
[333695354,1722364240615,-210.50481927,0.00010999,2]
[333695356,1722364240626,-5946.97813014,0.00010999,2]
[333695358,1722364240635,-40749.09253761,0.00010999,2]
[333695360,1722364240645,-88216.62614928,0.00010999,2]
[333695362,1722364240656,-150.0,0.00010999,2]
[333695364,1722364240665,-8920.412661,0.00011,2]
[333695366,1722364240675,-4453651.45852885,0.00011,2]
[333695368,1722364240684,-19355984.31530587,0.00011,2]
[333695370,1722364240697,-355.72425126,0.00011,2]
[333695372,1722364240708,-429.15446819,0.00011,2]
[333695376,1722364240737,-793.73185256,0.00011,2]
[333695378,1722364240749,-6134.62087728,0.00011,2]
[333695381,1722364240765,-494.55,0.00011,2]
[333695383,1722364240777,-500.54994624,0.00011,2]
[333695587,1722364242822,-250.0,0.00010197,2]
[333695589,1722364242832,-31050.3552617,0.00011,2]
[333695591,1722364242844,-614.98003177,0.00011,2]
[333695594,1722364242855,-993.12736041,0.00011,2]
[333695601,1722364242942,-3024.069,0.00011,2]
[333695602,1722364242954,-7059.3,0.00011,2]
[333695639,1722364245934,-481.59303637,0.00010999,2]
[333695640,1722364245952,-574.83267107,0.00010999,2]
[333695643,1722364245976,-1180.33,0.00010999,2]
[333695646,1722364245994,-587.2050527,0.00010999,2]
[333695649,1722364246012,-1502.556,0.00010999,2]
[333695653,1722364246036,-12726.928773,0.00010999,2]
[333695654,1722364246065,-1882.0,0.00010999,2]
[333695655,1722364246245,-145.83336443,0.00010999,2]
[333695656,1722364246291,-4980.67768785,0.00010999,2]
[333695657,1722364246309,-14326.04341458,0.00010999,2]
[333695658,1722364246324,-42623.94671244,0.00011,2]
[333695659,1722364246342,-507.06602299,0.00011,2]
[333695660,1722364246359,-505.0919612,0.00011,2]
[333695661,1722364246426,-4681.0,0.00011,2]
[333695662,1722364255089,475.11,8.682e-05,2]
[333695663,1722364304945,377.4760987,8.682e-05,2]
[333695664,1722364312925,158.83612492,8.682e-05,2]
[333695665,1722364313177,858.20187844,8.682e-05,2]
[333695666,1722364355472,191.6,8.388e-05,2]
[333695668,1722364461048,987.0,0.00032022,30]
[333695669,1722364546853,349.0,0.00032022,30]
[333695670,1722364659258,160.0,0.00032022,30]
[333695671,1722364799003,451.35,8.219e-05,2]
[333695672,1722364882255,500.0,0.00031754,30]
[333695673,1722364965022,2000.5,0.00031754,30]
[333695674,1722365065795,987.0,0.00031754,30]
[333695675,1722365113409,34880.85,0.00031754,30]
[333695676,1722365148271,349.0,0.00031754,30]
[333695682,1722365307304,428.78,8.219e-05,2]
[333695708,1722365435579,-567.14,9.011e-05,2]
[333695710,1722365435593,-3858.2296,9.011e-05,2]
[333695712,1722365435603,-300.0,9.093e-05,2]
[333695714,1722365435613,-300.0,9.093e-05,2]
[333695716,1722365435625,-1569.19674811,9.093e-05,2]
[333695718,1722365435635,-1472.59,9.094e-05,2]
[333695720,1722365435645,-20139.65496039,9.094e-05,2]
[333695722,1722365435657,-2960.35483927,9.094e-05,2]
[333695725,1722365435669,-569.72020034,9.094e-05,2]
[333695727,1722365435678,-114.99888232,9.165e-05,2]
[333695729,1722365435692,-502.90722895,9.165e-05,2]
[333695731,1722365435704,-36720.90528931,9.165e-05,2]
[333695735,1722365435730,-12028.86768816,9.165e-05,2]
[333695737,1722365435739,-150.0,9.165e-05,2]
[333695738,1722365435748,-2000.0,9.167e-05,2]
[333695739,1722365435758,-1000.0,9.169e-05,2]
[333695740,1722365435767,-150.0,9.616e-05,2]
[333695741,1722365435777,-188.85,9.633e-05,2]
[333695742,1722365435786,-172.37,9.638e-05,2]
[333695743,1722365435795,-1924.45221331,9.64e-05,2]
[333695744,1722365435804,-172.37,9.641e-05,2]
[333695745,1722365435813,-43.09009853,9.643e-05,2]
[333695763,1722365436231,-129.27990147,9.643e-05,2]
[333695764,1722365436240,-172.37,9.646e-05,2]
[333695765,1722365436249,-137.32887717,9.648e-05,2]
[333695766,1722365436261,-35.04112283,9.648e-05,2]
[333695767,1722365436270,-172.37,9.651e-05,2]
[333695768,1722365436279,-172.37,9.653e-05,2]
[333695769,1722365436288,-172.37,9.656e-05,2]
[333695770,1722365436297,-172.37,9.659e-05,2]
[333695771,1722365436306,-172.37,9.661e-05,2]
[333695772,1722365436315,-172.37,9.664e-05,2]
[333695773,1722365436325,-172.37,9.666e-05,2]
[333695774,1722365436334,-172.37,9.669e-05,2]
[333695775,1722365436343,-499.99,9.67e-05,2]
[333695776,1722365436352,-624.48619175,9.67e-05,2]
[333695777,1722365436363,-476.42380825,9.67e-05,2]
[333695778,1722365436372,-64.58541165,9.67e-05,2]
[333695779,1722365436383,-1286.19458835,9.67e-05,2]
[333695780,1722365436393,-172.37,9.671e-05,2]
[333695781,1722365436402,-172.37,9.674e-05,2]
[333695782,1722365436411,-172.37,9.676e-05,2]
[333695783,1722365436420,-172.37,9.679e-05,2]
[333695784,1722365436429,-172.37,9.682e-05,2]
[333695785,1722365436441,-172.37,9.684e-05,2]
[333695786,1722365436450,-172.37,9.687e-05,2]
[333695787,1722365436459,-1250.0,0.0001,2]
[333695788,1722365436468,-420.0,0.00010003,2]
[333695789,1722365436477,-420.0,0.00010003,2]
[333695790,1722365436486,-500.0,0.00010022,2]
[333695791,1722365436495,-500.0,0.00010031,2]
[333695792,1722365436504,-500.0,0.0001004,2]
[333695793,1722365436515,-500.0,0.00010049,2]
[333695794,1722365436526,-500.0,0.00010057,2]
[333695795,1722365436535,-500.0,0.00010066,2]
[333695796,1722365436544,-500.0,0.00010075,2]
[333695797,1722365436553,-228.94533958,0.00010084,2]
[333695798,1722365436565,-271.05466042,0.00010084,2]
[333695799,1722365436574,-500.0,0.00010093,2]
[333695800,1722365436583,-500.0,0.00010101,2]
[333695801,1722365436593,-500.0,0.0001011,2]
[333695802,1722365436602,-500.0,0.00010119,2]
[333695803,1722365436611,-500.0,0.00010128,2]
[333695804,1722365436621,-500.0,0.00010137,2]
[333695805,1722365436630,-500.0,0.00010145,2]
[333695806,1722365436639,-500.0,0.00010154,2]
[333695807,1722365436648,-500.0,0.00010163,2]
[333695808,1722365436657,-539.20649793,0.00010167,2]
[333695809,1722365436667,-500.0,0.00010172,2]
[333695810,1722365436676,-500.0,0.00010181,2]
[333695811,1722365436688,-500.0,0.00010189,2]
[333695812,1722365436697,-500.0,0.00010198,2]
[333695813,1722365436706,-500.0,0.00010207,2]
[333695814,1722365436715,-500.0,0.00010216,2]
[333695815,1722365436725,-500.0,0.00010225,2]
[333695816,1722365436734,-500.0,0.00010233,2]
[333695817,1722365436743,-500.0,0.00010242,2]
[333695818,1722365436752,-126.37572153,0.00010315,2]
[333695819,1722365436774,-857.25,0.00010315,2]
[333695820,1722365436785,-16.37427847,0.00010315,2]
[333695821,1722365436794,-978.50147597,0.00010356,2]
[333695826,1722365438031,-795.67679499,0.00010356,2]
[333695827,1722365438043,-1543.46536243,0.00010356,2]
[333695828,1722365438091,-6445.00021091,0.00010356,2]
[333695829,1722365438104,-10978.45424228,0.00010356,2]
[333695830,1722365438115,-12133.84786113,0.00010356,2]
[333695831,1722365438291,-44688.05405229,0.00010356,2]
[333695832,1722365438301,-428.78,0.00010427,2]
[333695833,1722365438311,-4582.96,0.00010475,2]
[333695834,1722365438320,-18487.35,0.00010475,2]
[333695835,1722365438330,-1106.97,0.00010475,2]
[333695836,1722365438339,-4238.2388,0.00010759,2]
[333695837,1722365438349,-2500.0,0.00010799,2]
[333695838,1722365438358,-469.6892,0.000108,2]
[333695839,1722365438368,-568.009,0.00010886,2]
[333695840,1722365438377,-568.009,0.00010886,2]
[333695842,1722365438386,-568.009,0.00010886,2]
[333695843,1722365438395,-568.009,0.00010886,2]
[333695845,1722365438404,-568.009,0.00010886,2]
[333695847,1722365438413,-568.009,0.00010886,2]
[333695849,1722365438423,-568.009,0.00010886,2]
[333695851,1722365438432,-568.009,0.00010886,2]
[333695853,1722365438442,-568.009,0.00010886,2]
[333695855,1722365438451,-568.009,0.00010886,2]
[333695857,1722365438461,-3000.0,0.0001089,2]
[333695859,1722365438470,-8585.0132085,0.00010899,2]
[333695861,1722365438480,-8585.01320843,0.00010899,2]
[333695863,1722365438489,-8585.01320843,0.00010899,2]
[333695865,1722365438500,-8585.01320843,0.00010899,2]
[333695867,1722365438509,-8585.01320843,0.00010899,2]
[333695869,1722365438521,-3419.10190553,0.00010899,2]
[333695871,1722365438533,-481.13642385,0.00010899,2]
[333695874,1722365438554,-3583.16620826,0.00010899,2]
[333695877,1722365438566,-1101.60867079,0.00010899,2]
[333695879,1722365438576,-418.79024114,0.00010899,2]
[333695881,1722365438587,-569.89984797,0.00010899,2]
[333695884,1722365438612,-2792.47538781,0.00010899,2]
[333695888,1722365438638,-563.31326908,0.00010899,2]
[333696006,1722365440203,-500.0,0.00010013,2]
[333696007,1722365440214,-175.56489,0.00010899,2]
[333696008,1722365440225,-4064.96957243,0.00010899,2]
[333696009,1722365440234,-8585.01320843,0.00010899,2]
[333696010,1722365440244,-8585.01320843,0.00010899,2]
[333696011,1722365440253,-6450.6834,0.000109,2]
[333696012,1722365440263,-28905.59332648,0.000109,2]
[333696013,1722365440274,-1629.98094198,0.000109,2]
[333696014,1722365440299,-13253.22423378,0.000109,2]
[333696015,1722365440383,-57432.11052902,0.000109,2]
[333696016,1722365440395,-1092.20036874,0.000109,2]
[333696017,1722365440403,-318.99963126,0.000109,2]
[333696018,1722365440459,-175.2204183,0.000109,2]
[333696019,1722365440469,-159.13915012,0.000109,2]
[333696020,1722365440478,-159.13915011,0.000109,2]
[333696021,1722365440488,-159.13915011,0.000109,2]
[333696022,1722365440497,-159.13915011,0.000109,2]
[333696023,1722365440507,-159.13915011,0.000109,2]
[333696024,1722365440519,-159.13915011,0.000109,2]
[333696025,1722365440531,-8585.01320843,0.000109,2]
[333696026,1722365440540,-159.13915011,0.000109,2]
[333696027,1722365440550,-159.13915011,0.000109,2]
[333696028,1722365440560,-159.13915011,0.000109,2]
[333696029,1722365440569,-159.13915011,0.000109,2]
[333696030,1722365440579,-159.13915011,0.000109,2]
[333696031,1722365440588,-159.13915011,0.000109,2]
[333696032,1722365440598,-159.13915011,0.000109,2]
[333696033,1722365440608,-159.13915011,0.000109,2]
[333696034,1722365440618,-152.12128491,0.000109,2]
[333696035,1722365440627,-152.1212849,0.000109,2]
[333696036,1722365440636,-152.1212849,0.000109,2]
[333696037,1722365440645,-500.0,0.00010912,2]
[333696038,1722365440654,-200.0,0.00010959,2]
[333696039,1722365440663,-155.0,0.0001099,2]
[333696040,1722365440673,-687.741,0.00010999,2]
[333696041,1722365440682,-605.0,0.00010999,2]
[333696042,1722365440692,-1255.0,0.00010999,2]
[333696043,1722365440702,-1925.0,0.00010999,2]
[333696044,1722365440711,-811.0,0.00010999,2]
[333696045,1722365440720,-2424.0,0.00010999,2]
[333696046,1722365440730,-279.0,0.00010999,2]
[333696047,1722365440739,-450.0,0.00010999,2]
[333696048,1722365440749,-433.0,0.00010999,2]
[333696049,1722365440758,-550.0,0.00010999,2]
[333696050,1722365440767,-150.0,0.00010999,2]
[333696051,1722365440776,-1774.32534105,0.00010999,2]
[333696052,1722365440787,-221.67465895,0.00010999,2]
[333696053,1722365440797,-870.60396914,0.00010999,2]
[333696054,1722365440808,-499.39603086,0.00010999,2]
[333696055,1722365440818,-3286.0,0.00010999,2]
[333696057,1722365440827,-250.0,0.00010999,2]
[333696059,1722365440836,-2634.171,0.00010999,2]
[333696061,1722365440845,-158.282,0.00010999,2]
[333696063,1722365440855,-17652.09268874,0.00010999,2]
[333696065,1722365440865,-3946.1,0.00010999,2]
[333696067,1722365440877,-6946.52823739,0.00010999,2]
[333696072,1722365440925,-9843.27907387,0.00010999,2]
[333696074,1722365440936,-1798.452,0.00010999,2]
[333696076,1722365440945,-150.0,0.00010999,2]
[333696078,1722365440954,-1074.0,0.00010999,2]
[333696080,1722365440964,-240.0,0.00010999,2]
[333696082,1722365440974,-587.41044613,0.00010999,2]
[333696084,1722365440986,-2409.35153101,0.00010999,2]
[333696086,1722365440997,-848.31712661,0.00010999,2]
[333696105,1722365441559,-2103.18163453,0.00010999,2]
[333696106,1722365441571,-300.02,0.00010999,2]
[333696107,1722365441581,-1310.85444405,0.00011,2]
[333696120,1722365443150,-252.52454862,0.00010449,2]
[333696121,1722365443160,-41378.85608876,0.00011,2]
[333696122,1722365443170,-205285.12017293,0.00011,2]
[333696123,1722365443181,-1884.13174962,0.00011,2]
[333696124,1722365443198,-1187.67637932,0.00011,2]
[333696125,1722365443211,-1267.79437136,0.00011,2]
[333696126,1722365443222,-1328.64859932,0.00011,2]
[333696127,1722365443238,-997.650002,0.00011,2]
[333696128,1722365443249,-20492.59590905,0.00011,2]
[333696129,1722365443261,-823.08195931,0.00011,2]
[333696130,1722365443286,-8971.99851249,0.00011,2]
[333696131,1722365443310,-1294.384,0.00011,2]
[333696132,1722365443322,-530.36582243,0.00011,2]
[333696133,1722365443334,-1012.97035628,0.00011,2]
[333696134,1722365443357,-328.32741597,0.00011,2]
[333696135,1722365443369,-293.75433028,0.00011,2]
[333696151,1722365446203,-5948.26073828,0.00010999,2]
[333696152,1722365446213,-529157.28074606,0.00011,2]
[333696153,1722365446225,-261913.1532111,0.00011,2]
[333696154,1722365446657,-13497.80833188,0.00011,2]
[333696155,1722365446669,-85679.50000002,0.00011,2]
[333696156,1722365446711,-253.52,0.00011,2]
[333696157,1722365446722,-11160.0,0.00011,2]
[333696158,1722365546734,160.0,0.00031804,30]
[333696159,1722365661590,554.0,0.00031804,30]
[333696160,1722365693671,1000.0,0.00031804,30]
[333696161,1722365694371,1000.0,0.00031804,30]
[333696162,1722365694831,1000.0,0.00031804,30]
[333696163,1722365696454,1000.0,0.00031804,30]
[333696164,1722365696760,1000.0,0.00031804,30]
[333696165,1722365749375,349.0,0.00031804,30]
[333696168,1722365768353,450.54,8.219e-05,2]
[333696169,1722365787665,817.0,0.00031804,30]
[333696170,1722365850343,1000.0,0.00031804,30]
[333696172,1722366326873,428.01,8.219e-05,2]
[333696173,1722366346979,352.0,0.00031798,30]
[333696175,1722366447631,160.0,0.00031798,30]
[333696187,1722366632249,-400.0,9.66e-05,2]
[333696188,1722366632261,-250.0,9.729e-05,2]
[333696189,1722366632271,-5.60712406,9.761e-05,2]
[333696190,1722366632283,-284.45262402,9.761e-05,2]
[333696191,1722366632292,-600.0,9.761e-05,2]
[333696192,1722366632302,-500.0,9.943e-05,2]
[333696193,1722366632311,-500.0,9.952e-05,2]
[333696194,1722366632321,-500.0,9.961e-05,2]
[333696195,1722366632331,-500.0,9.969e-05,2]
[333696196,1722366632340,-500.0,9.978e-05,2]
[333696197,1722366632351,-500.0,9.987e-05,2]
[333696198,1722366632361,-499.99,9.987e-05,2]
[333696199,1722366632370,-500.0,9.996e-05,2]
[333696200,1722366632381,-1250.0,0.0001,2]
[333696201,1722366632390,-500.0,0.00010005,2]
[333696202,1722366632399,-177.52,0.00010225,2]
[333696203,1722366632408,-2732.21688163,0.00010256,2]
[333696204,1722366632420,-1995.30691837,0.00010256,2]
[333696205,1722366632429,-202.67,0.00010305,2]
[333696206,1722366632439,-202.67,0.00010357,2]
[333696207,1722366632448,-750.0,0.00010365,2]
[333696208,1722366632458,-428.01,0.0001046,2]
[333696209,1722366632467,-2123.8094,0.00010659,2]
[333696210,1722366632476,-389.65432667,0.00010721,2]
[333696211,1722366632489,-5441.34567333,0.00010721,2]
[333696212,1722366632498,-1148.45432667,0.00010721,2]
[333696213,1722366632510,-251.03914311,0.00010721,2]
[333696214,1722366632522,-3722.50653022,0.00010721,2]
[333696215,1722366632531,-21145.06792964,0.00010721,2]
[333696216,1722366632563,-725.44019041,0.00010721,2]
[333696217,1722366632574,-374.28394275,0.00010721,2]
[333696219,1722366632585,-2253.6659372,0.00010721,2]
[333696221,1722366632595,-1074.0,0.00010721,2]
[333696223,1722366632604,-600.0,0.00010797,2]
[333696225,1722366632614,-400.0,0.00010868,2]
[333696227,1722366632624,-3000.0,0.0001089,2]
[333696228,1722366632634,-150.0,0.00010899,2]
[333696229,1722366632645,-951.082554,0.000109,2]
[333696230,1722366632655,-630.2187,0.000109,2]
[333696231,1722366632664,-1000.0,0.000109,2]
[333696232,1722366632674,-1000.0,0.000109,2]
[333696233,1722366632683,-1546.78971901,0.000109,2]
[333696234,1722366632693,-1636.81999798,0.000109,2]
[333696235,1722366632703,-200.0,0.00010959,2]
[333696236,1722366632714,-600.0,0.00010982,2]
[333696237,1722366632724,-1017.0,0.0001099,2]
[333696238,1722366632734,-1000.0,0.0001099,2]
[333696239,1722366632745,-692.42309181,0.0001099,3]
[333696240,1722366632756,-307.57690819,0.0001099,3]
[333696241,1722366632766,-883.29731899,0.0001099,3]
[333696242,1722366632780,-116.70268101,0.0001099,3]
[333696243,1722366632790,-144.86820857,0.0001099,2]
[333696244,1722366632822,-855.13179143,0.0001099,2]
[333696245,1722366632833,-1000.0,0.0001099,2]
[333696246,1722366632846,-1000.0,0.0001099,2]
[333696247,1722366632857,-675.70989043,0.0001099,3]
[333696248,1722366632868,-324.29010957,0.0001099,3]
[333696249,1722366632881,-651.36217936,0.0001099,2]
[333696250,1722366632892,-348.63782064,0.0001099,2]
[333696251,1722366632902,-151.36217936,0.0001099,3]
[333696289,1722366638355,-552.62070963,0.0001099,3]
[333696290,1722366638366,-296.01711101,0.0001099,3]
[333696291,1722366638376,-336.67668818,0.0001099,2]
[333696292,1722366638385,-652.87049443,0.00010997,2]
[333696293,1722366638395,-815.06184194,0.00010997,2]
[333696294,1722366638405,-1925.0,0.00010999,2]
[333696295,1722366638414,-1255.0,0.00010999,2]
[333696296,1722366638423,-478.224,0.00010999,2]
[333696297,1722366638432,-445.0,0.00010999,2]
[333696298,1722366638441,-450.0,0.00010999,2]
[333696299,1722366638450,-2384.0,0.00010999,2]
[333696300,1722366638459,-802.0,0.00010999,2]
[333696301,1722366638468,-1996.0,0.00010999,2]
[333696302,1722366638477,-2661.1051848,0.00010999,2]
[333696303,1722366638489,-624.8948152,0.00010999,2]
[333696304,1722366638501,-150.01,0.00010999,2]
[333696305,1722366638511,-1258.11499137,0.00010999,2]
[333696306,1722366638522,-535.43603324,0.00010999,2]
[333696307,1722366638636,-358.05676257,0.00010999,2]
[333696308,1722366638645,-65436.99071549,0.00011,2]
[333696309,1722366638654,-17598.60216581,0.00011,2]
[333696310,1722366638666,-498.35828287,0.00011,2]
[333696493,1722366640460,-10448.66530991,0.00011,2]
[333696495,1722366640471,-1999.524,0.00011,2]
[333696497,1722366640482,-21256.29782865,0.00011,2]
[333696498,1722366640496,-1730.84596,0.00011,2]
[333696501,1722366640507,-1720.07733724,0.00011,2]
[333696504,1722366640538,-41374.91738175,0.00011,2]
[333696506,1722366640549,-1552.49997364,0.00011,2]
[333696524,1722366640730,-345835.1280606,0.00011,2]
[333696526,1722366640742,-698.50638546,0.00011,2]
[333696528,1722366640753,-128412.03591141,0.00011,2]
[333696780,1722366643419,-500.32600203,0.00011,2]
[333696782,1722366643430,-327.12129972,0.00011,2]
[333696789,1722366643488,-1596.30903577,0.00011,2]
[333696794,1722366643530,-57693.21817411,0.00011,2]
[333697013,1722366646642,-3750.898,0.00011,2]
[333697014,1722366646654,-341653.50498862,0.00011,2]
[333697015,1722366646666,-3588.56393143,0.00011,2]
[333697016,1722366646677,-9049.34034,0.00011,2]
[333697017,1722366646688,-7297.01446395,0.00011,2]
[333697018,1722366646699,-3337.46412,0.00011,2]
[333697592,1722366840411,449.36,8.6e-05,2]
[333697593,1722366929259,150.0,0.00031798,30]